Cogmind - Beta 13 @@@ ROGUE MODE // 2024.04.10 @ 21:16:03 Player: Ragonath Result: Destroyed by G-47 Trooper with Particle Gun Performance ------------- Evolutions (2) 1000 Regions Visited (3) 600 Robots Destroyed (15) 75 Value Destroyed (212) 212 Prototype IDs (0) 0 Alien Tech Used (0) 0 Bonus (0) 0 TOTAL SCORE: 1887 Bonus ------- None Cogmind --------- Core Integrity 0/550 Matter 260/300 Energy 84/100 System Corruption 0% Temperature Cool (10) Movement Hovering (60) Location -8/Materials Parts ------- > --- POWER (1) -------- (None) > --- PROPULSION (6) --- Airjet > --- UTILITY (2) ------ System Shield > --- WEAPON (2) ------- Improved Datajack > --- INVENTORY (5) ---- (None) Peak State ------------ > --- POWER ------------ Backup Power I > --- PROPULSION ------- Medium Treads Medium Treads Medium Treads Medium Treads Flight Unit Flight Unit > --- UTILITY ---------- Improved Terrain Scanner Backup Plating I > --- WEAPON ----------- Mining Claw Mining Claw > --- INVENTORY -------- Weight Redist. System System Shield Datajack [Rating: 25] Favorites ----------- Power Ion Engine Engine Ion Engine Propulsion Wheel Treads Medium Treads Wheel Wheel Hover Unit Airjet Flight Unit Flight Unit Utility Improved Terrain Scanner Device Improved Terrain Scanner Storage Small Storage Unit Processor Melee Analysis Suite Hackware System Shield Protection Backup Plating I Weapon Mining Claw Energy Gun Small Laser Slashing Weapon Mining Claw Special Melee Weapon Improved Datajack Build | -11 -10 -9 -8 ------- Run | Yrd Mat Mat Mat Slots Evolved 4 | . . 2 2 Power . | . . . . Propulsion 4 | . . 2 2 Utility . | . . . . Weapon . | . . . . Parts Attached 28 | 7 8 . 13 Power 4 | 2 . . 2 Engine 4 | 2 . . 2 Core . | . . . . Reactor . | . . . . Propulsion 12 | 2 4 . 6 Treads 4 | . . . 4 Leg . | . . . . Wheel 4 | 2 2 . . Hover 1 | . . . 1 Flight 3 | . 2 . 1 Utility 7 | 1 2 . 4 Device 2 | 1 . . 1 Storage 2 | . 2 . . Processor 1 | . . . 1 Hackware 1 | . . . 1 Protection 1 | . . . 1 Artifact . | . . . . Weapon 5 | 2 2 . 1 Energy Gun 2 | 2 . . . Energy Cannon . | . . . . Ballistic Gun . | . . . . Ballistic Cannon . | . . . . Launcher . | . . . . Special Weapon . | . . . . Impact Weapon . | . . . . Slashing Weapon 2 | . 2 . . Piercing Weapon . | . . . . Special Melee Weapon 1 | . . . 1 Unidentified Prototypes . | . . . . Parts Lost 13 | . 1 . 12 Power 4 | . 1 . 3 Propulsion 3 | . . . 3 Utility 4 | . . . 4 Weapon 2 | . . . 2 Highest Loss Streak 8 | . 1 . 8 To Critical Strikes . | . . . . Average Slot Usage (%) 72 | . 83 77 51 Engine 9 | . 10 11 8 Wheel 11 | . 22 . . Flight 10 | . 4 22 12 Device 11 | . 14 11 6 Storage 1 | . 3 . . Protection 3 | . . 11 5 Energy Gun 1 | . 3 . . Slashing Weapon 20 | . 23 22 13 Naked Turns 2 | . . . 2 Heaviest Build 30 | 8 30 7 7 Greatest Support 84 | 20 20 8 84 Greatest Overweight (x) 2 | . 1 . 2 Average Overweight (x) . | . . . . Largest Inventory Capacity 15 | 5 15 5 5 Average Capacity 5 | 5 5 5 5 Most Carried 5 | 4 5 2 5 Average Carried 2 | 1 3 1 2 Final Capacity 5 | 5 5 5 5 Final Carried 3 | 3 1 2 . Class Distribution -------------------- 100% | Mutant Dominant Class ---------------- Mutant | -10/Materials Mutant | -9/Materials Mutant | -8/Materials Resources | -11 -10 -9 -8 ----------- Run | Yrd Mat Mat Mat Matter Collected 415 | 260 85 . 70 Remotely . | . . . . Salvage Created 487 | 230 143 . 114 Parts 39 | 18 12 . 9 Haulers Intercepted . | . . . . Recyclers Shooed 2 | 1 . . 1 Parts Field Recycled . | . . . . Retrieved Matter . | . . . . Parts Self-Destructed . | . . . . Prevented . | . . . . Kills | -11 -10 -9 -8 ------- Run | Yrd Mat Mat Mat Combat Hostiles Destroyed 5 | . 4 . 1 Melee 5 | . 4 . 1 Classes Destroyed 9 | 3 4 . 2 Worker 1 | 1 . . . Builder 1 | . . . 1 Tunneler 5 | 4 . . 1 Recycler 1 | 1 . . . Operator 1 | . 1 . . Watcher 1 | . 1 . . Swarmer 2 | . 2 . . Grunt 2 | . 2 . . Sentry 1 | . . . 1 Best Kill Streak 5 | 5 3 . 2 Combat Bots Only 2 | . 2 . 1 Max Kills in Single Turn 1 | 1 1 . 1 Gunslinging . | . . . . Exploded . | . . . . Melee 1 | . 1 . 1 Uniques/NPCs Destroyed . | . . . . Combat | -11 -10 -9 -8 -------- Run | Yrd Mat Mat Mat Hostile Shots Fired 150 | . 35 8 107 Missed 47 | . 8 2 37 Damage Taken 1394 | . 248 82 1064 Core 665 | . 70 40 555 Absorbed by Shields . | . . . . Core Remaining (%) 87 | 100 72 90 . Volleys Fired 18 | 18 . . . Largest 2 | 2 . . . Hottest 80 | 80 . . . Shots Fired 36 | 36 . . . Gun 36 | 36 . . . Cannon . | . . . . Launcher . | . . . . Special . | . . . . Kinetic . | . . . . Thermal 36 | 36 . . . Explosive . | . . . . Electromagnetic . | . . . . Robot Hit Streak 13 | 13 . . . Robot Miss Streak 3 | 3 . . . Penetration Max . | . . . . Secondary Targets . | . . . . Shots Hit Robots 45 | 22 12 . 11 Core Hits 16 | 7 6 . 3 Critical Kills . | . . . . Critical Parts Destroyed . | . . . . Critical Strikes . | . . . . Melee Attacks 38 | . 16 1 21 Impact . | . . . . Slashing 37 | . 16 1 20 Piercing . | . . . . Sneak Attacks 3 | . . . 3 Combat Hostiles . | . . . . Follow-up Attacks 5 | . 3 . 2 Damage Inflicted 858 | 256 302 . 300 Guns 256 | 256 . . . Cannons . | . . . . Explosions . | . . . . Melee 602 | . 302 . 300 Ramming . | . . . . Kinetic . | . . . . Thermal 256 | 256 . . . Explosive . | . . . . Electromagnetic . | . . . . Impact . | . . . . Slashing 602 | . 302 . 300 Piercing . | . . . . Highest Corruption . | . . . . Average Corruption . | . . . . Corruption Purged . | . . . . Corruption Blocked . | . . . . Overload Shots . | . . . . Overflow Damage 33 | . 11 . 22 Projectiles . | . . . . Explosions . | . . . . Melee 33 | . 11 . 22 Knockbacks . | . . . . Impact . | . . . . Kinetic . | . . . . Secondary . | . . . . Self-Inflicted Damage . | . . . . Shots . | . . . . Rammed . | . . . . Targets Rammed . | . . . . Kicked . | . . . . Crushed . | . . . . Highest Temperature 90 | 90 . . 1 Average Temperature 34 | 35 . . 1 Received Heat Transfer 426 | . 48 18 360 Siege Activations . | . . . . Robots Corrupted . | . . . . Combat Hostiles . | . . . . Parts Fried . | . . . . Impact Corruptions . | . . . . Robots Melted . | . . . . Combat Hostiles . | . . . . Parts Melted . | . . . . Heat Transferred 575 | 575 . . . Parts Sabotaged . | . . . . Parts Stolen . | . . . . Parts Stripped . | . . . . Power Chain Reactions . | . . . . Alert | -11 -10 -9 -8 ------- Run | Yrd Mat Mat Mat Peak Influence 196 | 30 181 196 177 Initial 82 | . 19 76 82 Average 82 | 11 84 104 104 Maximum Alert Level . | . . . . Low Security (%) 100 | 100 100 100 100 Level 1 . | . . . . Level 2 . | . . . . Level 3 . | . . . . Level 4 . | . . . . Level 5 . | . . . . High Security . | . . . . Max Security . | . . . . Squads Dispatched 4 | . 1 . 3 Investigation 3 | . 1 . 2 Extermination . | . . . . Reinforcement 1 | . . . 1 Assault . | . . . . Garrison . | . . . . Intercept . | . . . . Searches Triggered . | . . . . Construction Impeded . | . . . . Haulers Reinforced . | . . . . Active Scanning Responses . | . . . . Cargo Convoy Interrupts . | . . . . Stealth | -11 -10 -9 -8 --------- Run | Yrd Mat Mat Mat Distress Signals 2 | . 1 . 1 Communications Jammed . | . . . . Distress Signals . | . . . . Times Spotted 30 | . 11 7 12 Peak Tracking Total 9 | . 5 7 9 Tactical Retreats 1 | . . 1 . Traps | -11 -10 -9 -8 ------- Run | Yrd Mat Mat Mat Traps Triggered 2 | . . . 2 Indirectly . | . . . . Trap Hack Attempts . | . . . . Triggered . | . . . . Disarmed . | . . . . Reprogrammed . | . . . . Reused . | . . . . Traps Extracted . | . . . . Installed . | . . . . Triggered . | . . . . Machines | -11 -10 -9 -8 ---------- Run | Yrd Mat Mat Mat Machines Disabled . | . . . . Max in Single Turn . | . . . . Machines Repaired . | . . . . Machines Dismantled . | . . . . Machines Sabotaged . | . . . . Overloaded Fab Kills . | . . . . Hacking | -11 -10 -9 -8 --------- Run | Yrd Mat Mat Mat Machines Accessed 6 | . 2 3 1 Terminals 2 | . 2 . . Fabricators . | . . . . Repair Stations 2 | . . 2 . Recycling Units . | . . . . Scanalyzers 1 | . . 1 . Garrison Access 1 | . . . 1 Total Hacks 13 | . 6 6 1 Successful 9 | . 3 5 1 Failed 4 | . 3 1 . Catastrophic . | . . . . Database Lockouts . | . . . . Manual 4 | . 4 . . Terminals 6 | . 6 . . Fabricators . | . . . . Repair Stations 4 | . . 4 . Recycling Units . | . . . . Scanalyzers 2 | . . 2 . Garrison Access 1 | . . . 1 Terminal Hacks 3 | . 3 . . Robot Analysis 1 | . 1 . . Alert Level 2 | . 2 . . Fabricator Hacks . | . . . . Repair Station Hacks 3 | . . 3 . Scan Component 2 | . . 2 . Refit 1 | . . 1 . Recycling Unit Hacks . | . . . . Scanalyzer 2 | . . 2 . Insert Component 1 | . . 1 . Analyze 1 | . . 1 . Garrison Access Hacks 1 | . . . 1 Unlock Access 1 | . . . 1 Unauthorized Hacks . | . . . . Terminals . | . . . . Fabricators . | . . . . Repair Stations . | . . . . Recycling Units . | . . . . Scanalyzers . | . . . . Garrison Access . | . . . . Data Cores Recovered 1 | . 1 . . Used 1 | . 1 . . Hacking Detections 4 | . 2 2 . Full Trace Events 1 | . 1 . . Feedback Events . | . . . . Feedback Blocked . | . . . . Robot Schematics Acquired . | . . . . Robots Built . | . . . . Authchips . | . . . . Time . | . . . . Total Robot Build Rating . | . . . . Part Schematics Acquired 1 | . . 1 . Parts Built . | . . . . Authchips . | . . . . Time . | . . . . Total Part Build Rating . | . . . . Parts Repaired . | . . . . Time . | . . . . Parts Recycled . | . . . . Recycled Matter . | . . . . Retrieved Matter . | . . . . Retrieved Components . | . . . . Parts Scanalyzed 1 | . . 1 . Part Schematics Acquired 1 | . . 1 . Parts Damaged . | . . . . Bothacking | -11 -10 -9 -8 ------------ Run | Yrd Mat Mat Mat Used RIF Installer . | . . . . Robots Hacked . | . . . . Non-combat . | . . . . Combat . | . . . . Robot Hacks Applied . | . . . . Relay Couplers Released . | . . . . Fabnet Peak Effective % . | . . . . Robots Rewired . | . . . . Allies Hacked . | . . . . Hacks Repelled . | . . . . Allies | -11 -10 -9 -8 -------- Run | Yrd Mat Mat Mat Total Allies . | . . . . Largest Group . | . . . . Highest-Rated Group . | . . . . Highest-Rated Ally . | . . . . Total Orders . | . . . . Ally Attacks . | . . . . Total Damage . | . . . . Kills . | . . . . Allies Corrupted . | . . . . Allies Melted . | . . . . Intel | -11 -10 -9 -8 ------- Run | Yrd Mat Mat Mat Robot Analysis Total 1 | . 1 . . Derelict Logs Recovered . | . . . . Drone Launches . | . . . . Drone Recoveries . | . . . . Exploration | -11 -10 -9 -8 ------------- Run | Yrd Mat Mat Mat Turns Passed 825 | 123 336 144 222 Spaces Moved 1082 | 71 392 302 317 Core 61 | 14 . . 47 Treads 1 | . . . 1 Legs . | . . . . Wheels 319 | 57 262 . . Hover 1 | . . . 1 Flight 700 | . 130 302 268 Fastest Speed 34 | 50 37 37 34 Average Speed 52 | 74 67 37 44 Slowest Speed 160 | 80 117 37 160 Overloaded Moves . | . . . . Propulsion Burnouts . | . . . . Robots Hopped . | . . . . Cave-ins Triggered . | . . . . Exploration Rate (%) 29 | 4 48 30 34 Regions Visited 3 Branch Regions . Pre-discovered Areas . | . . . . Known Exits Taken . | . . . . Unknown Exits Taken 3 | 1 1 1 . Scrap Searched . | . . . . Spaces Dug . | . . . . Terrain Destroyed . | . . . . Melee . | . . . . Projectile . | . . . . AOE . | . . . . Terrain Rammed . | . . . . Walls Destroyed . | . . . . Machines Disabled . | . . . . Actions | -11 -10 -9 -8 --------- Run | Yrd Mat Mat Mat Total 1238 | 104 439 331 364 Wait 33 | . 5 28 . Move 1079 | 70 391 301 317 Hop . | . . . . Pick Up 30 | 9 10 1 10 Fast Attach 1 | . . . 1 Attach 25 | 6 7 . 12 Detach . | . . . . Swap 2 | 1 1 . . Drop 18 | . 12 . 6 Fire 18 | 18 . . . Melee 32 | . 13 1 18 Ram . | . . . . Kick . | . . . . Crush . | . . . . Escape Stasis . | . . . . Rewire . | . . . . Trap . | . . . . Miscellaneous . | . . . . Route ------- -11/Scrapyard -10/Materials -9/Materials -8/Materials (discovered 1 exit: Gar) History --------- Turn | Location | Event 10 | -11/Scrapyard | Discovered new exit (range 15) 124 | -11/Scrapyard | Entered Materials 309 | -10/Materials | Build established: Mutant 458 | -10/Materials | Discovered new exit (range 7) 460 | -10/Materials | Entered another Materials area 460 | -9/Materials | Evolved 2 slots: Propulsion x2 545 | -9/Materials | Discovered new exit (range 9) 604 | -9/Materials | Entered another Materials area 604 | -8/Materials | Evolved 2 slots: Propulsion x2 773 | -8/Materials | Core integrity fell below 50% 805 | -8/Materials | Lost 8 parts (2p2n2u2w) 814 | -8/Materials | Core integrity fell below 20% 821 | -8/Materials | Identified exit to Garrison 826 | -8/Materials | Destroyed by G-47 Trooper with Particle Gun Last Messages --------------- R-06 Scavenger inserts Structural Scanner into recycling unit. Slug penetrates Garrison Access. K-01 Serf collects debris. R-06 Scavenger inserts Welding Torch into recycling unit. Penetrated by Slug. Slug penetrates H-55 Commando. Critical hit (Burn: +37). Connecting with Garrison Access... Current location identified: Materials >>Unlock Access door unlocked. EXIT=UNLOCKED: GARRISON Lgt. Ion Engine destroyed. R-06 Scavenger inserts Terrain Scanner into recycling unit. Penetrated by Slug. Acquired Airjet. R-06 Scavenger destroyed. Map ----- +----------------------------------------------------+ | ?????????????????????????????????????????????????? | | ?????????????????????????????????????????????????? | | ?????????????????????????????????????????????????? | | ?????????????????????????????????????????????????? | | ?????????????????????????????????????????????????? | | ?????????????????????????????????????????????????? | | ?????????????????????????????????????????????????? | | ?????????????????????????????????????????????????? | | ?????????????????????????????????????????????????? | | ?????????????????????????????????????????????????? | | ?????????????????????????????????????????????????? | | ?????????????????????????????#???????????????????? | | ???????????????????????????? #???????????????????? | | ???????????????????????????? #???????????????????? | | ???????????????????????????? #???????????????????? | | ???????????????????????????? #???????????????????? | | ??????????????????????????? #???????????????????? | | ??????????????????????????? #???????????????????? | | ??????????????????????????? #???????????????????? | | ??????????????????????????? #???????????????????? | | ?????????????????????????? #???????????????????? | | ????????????????????#####? #???????????????????? | | ????????????????????#"""#? g #???????????????????? | | ??????????????????###"Y"## ##########??????????? | | ??????????????????# u%! ????????? | | ??????????????????+ g!r@ ????????? | | ??????????????????# ""h[ ????????? | | ??????????????????# "G> ##############?????????? | | ??????????????????# "" !#??????????????????????? | | ??????????????????#Y rh ##?????????????????????? | | ????????????#+#??## Y "#?????????????????????? | | ????????????# #??#" """ T#?????????????????????? | | ????????????# #??# g """ a"#?????????????????????? | | ????????????# #??# """ ##?????????????????????? | | ????????????# ##### #??????????????????????? | | ?????###????# [ ! #??????????????????????? | | ?????# ??# #####/### #??????????????????????? | | ?????# # # ## ##?????????????????????? | | ?????#!!! / + # ##########+#??????????? | | ?????#!!! # # ] # ??????????? | | ?????#!!! # # ! # ??????????? | | ?????# ?? ?# # *! # ??????????# | | ?????#???##?# # *] # ##########+???????????# | | ????????????# ##########/#####?#?????????????????# | | ????????????# #????# !% #??????????????????## | | ????????????# #????# ! = #??????????????????+ | | ????????????# #????# =#?????? ???????????# | | ????????????? ?????# #??????????????????# | | ????????????? ?????# #??????????????????# | | ????????????? ?????# #??????????????????+ | +----------------------------------------------------+ Best States ------------- Heat Dissipation 31 Energy Generation 12 Energy Capacity 265 Matter Stores 300 Matter Capacity 300 Sight Range 16 Terrain Scan Range 16 Terrain Scan Density 10 Additional Mass Support 6 Armor Coverage 150 Evasion (%) 63 Melee Accuracy 5 Recoil Reduction 2 Defensive Hacking 10 Item Schematics ----------------- Datajack | -9/Materials | Scanalyzed Robot Schematics ------------------ None Fabricated ------------ Nothing Alien Tech Used ----------------- None Achievements -------------- Dynamic Key Challenges ------------ None Game ------ Seed StructuralSupercompositeRay Manual? 0 Play Time 00:17:12 Cumulative 8.0 hours Start 2024.04.10 @ 20:59:06 End 2024.04.10 @ 21:16:03 Sessions 1 Manual Loads 0 Difficulty Rogue Special Mode None Game No. 16 Rogue 16 Adventurer 0 Explorer 0 Win Type - Total 0 Types 0/0/0/0/0/0/0/0/0 Lore% 6 Gallery% 13 Achievement% 13 Wizard Run 0 Options --------- Layout 1 ASCII 0 Keyboard 0 Movement Mouse Keybinds 0 Fullscreen 1 Font 32/SmallcapsGlow Map View 50x35 Zoom Use 0% Tactical HUD 0 Map Filters NONE Filters NONE Steam 1 RUN: 24b69ee8-a5bf-4803-9af1-c5be8889d0a8